bitfinex/quotes_BTCUSD_20240902
["timestamp","ask_amount","ask_price","bid_price","bid_amount"]
[1725244190937,3.04220855,57682.0,57681.0,0.0020398]
[1725244191124,2.85324555,57682.0,57681.0,0.0020398]
[1725244191834,2.84724555,57682.0,57681.0,0.0010398]
[1725244192051,2.84424555,57682.0,57681.0,0.0020398]
[1725244192489,2.85424555,57682.0,57681.0,0.0020398]
[1725244194241,3.01039601,57682.0,57681.0,0.0020398]
[1725244196753,2.85424555,57682.0,57681.0,0.0020398]
[1725244197158,3.01035096,57682.0,57681.0,0.0020398]
[1725244197358,3.07994396,57682.0,57681.0,0.0020398]
[1725244198262,2.91667796,57682.0,57681.0,0.0020398]
[1725244198474,2.76057255,57682.0,57681.0,0.0020398]
[1725244198908,2.91667796,57682.0,57681.0,0.0020398]
[1725244199328,2.91664909,57682.0,57681.0,0.0020398]
[1725244199983,2.91464909,57682.0,57681.0,0.0020398]
[1725244200203,2.91664909,57682.0,57681.0,0.0020398]
[1725244202264,1.97695255,57682.0,57681.0,0.0020398]
[1725244202471,2.13942419,57682.0,57681.0,0.0020398]
[1725244205357,2.22772419,57682.0,57681.0,0.0020398]
[1725244206008,1.82297919,57682.0,57681.0,0.0020398]
[1725244206470,3.33611119,57682.0,57681.0,0.0020398]
[1725244212686,3.33611119,57682.0,57671.0,0.113198]
[1725244212687,1.907334,57672.0,57671.0,1e-06]
[1725244212934,5.245688,57672.0,57671.0,1e-06]
[1725244213154,5.87480182,57672.0,57671.0,1e-06]
[1725244213372,6.23970346,57672.0,57671.0,1e-06]
[1725244213601,5.86854522,57672.0,57671.0,1e-06]
[1725244213815,5.16389022,57672.0,57671.0,1e-06]
[1725244214024,5.05882722,57672.0,57671.0,1e-06]
[1725244214489,5.20078483,57672.0,57671.0,1e-06]
[1725244214706,5.22878483,57672.0,57671.0,1e-06]
[1725244214923,5.21478483,57672.0,57671.0,1e-06]
[1725244215130,5.20078483,57672.0,57671.0,1e-06]
[1725244215342,5.05882722,57672.0,57671.0,1e-06]
[1725244215841,5.21474042,57672.0,57671.0,1e-06]
[1725244216300,5.05882722,57672.0,57671.0,1e-06]
[1725244216899,0.1846,57654.0,57633.0,0.008998]
[1725244217080,0.1846,57654.0,57642.0,0.50540786]
[1725244217081,0.867362,57646.0,57642.0,0.50540786]
[1725244217291,4.41484664,57646.0,57642.0,0.50540786]
[1725244217510,4.12546264,57646.0,57637.0,0.0851]
[1725244217728,4.40550816,57646.0,57637.0,0.0851]
[1725244217979,4.49319462,57646.0,57637.0,0.0851]
[1725244218251,3.61030389,57646.0,57637.0,0.0851]
[1725244219334,3.61030389,57646.0,57638.0,0.1002]
[1725244219335,2.96331492,57646.0,57638.0,0.1002]
[1725244219562,2.96331492,57646.0,57637.0,0.0851]
[1725244219968,3.0333901,57646.0,57637.0,0.0851]
[1725244220213,2.95555861,57646.0,57637.0,0.0851]
[1725244220436,3.03330523,57646.0,57634.0,0.1067]
[1725244220653,3.03685861,57646.0,57634.0,0.1067]
[1725244220898,3.11460619,57646.0,57634.0,0.1067]
[1725244221112,3.38380361,57646.0,57634.0,0.1067]
[1725244221553,3.39144198,57646.0,57634.0,0.1067]
[1725244221776,3.42882843,57646.0,57634.0,0.1067]
[1725244221984,3.50654415,57646.0,57634.0,0.1067]
[1725244222225,3.42882843,57646.0,57634.0,0.1067]
[1725244222445,3.42882843,57646.0,57633.0,0.008998]
[1725244222446,1.561576,57634.0,57633.0,0.008998]
[1725244222665,5.28325112,57634.0,57633.0,0.008998]
[1725244222891,4.87507812,57634.0,57633.0,0.008998]
[1725244223116,4.64322912,57634.0,57633.0,0.008998]
[1725244223361,4.67046628,57634.0,57633.0,0.008998]
[1725244223565,1.3762428,57626.0,57625.0,0.1106]
[1725244223772,2.5887368,57626.0,57625.0,0.1106]
[1725244224000,2.5025638,57626.0,57625.0,0.1106]
[1725244224219,1.4992428,57626.0,57625.0,0.1106]
[1725244224430,2.0224348,57626.0,57625.0,0.1106]
[1725244224633,2.04967285,57626.0,57625.0,0.1106]
[1725244225526,2.05867285,57626.0,57625.0,0.1106]
[1725244225795,1.92381085,57626.0,57625.0,0.1106]
[1725244226000,1.88223085,57626.0,57625.0,0.1106]
[1725244228648,1.214748,57625.0,57624.0,0.0859]
[1725244228856,2.663677,57625.0,57624.0,0.0859]
[1725244229276,2.568287,57625.0,57624.0,0.0859]
[1725244229706,2.280624,57625.0,57624.0,0.0859]
[1725244230135,2.178085,57625.0,57624.0,0.0859]
[1725244231472,1.448404,57625.0,57624.0,0.0859]
[1725244233969,1.345748,57625.0,57624.0,0.0859]
[1725244234851,1.345748,57625.0,57624.0,0.1867]
[1725244234852,1.322748,57625.0,57624.0,0.1867]
[1725244236006,1.345748,57625.0,57624.0,0.1867]
[1725244236252,2.196251,57625.0,57624.0,0.1867]
[1725244236479,2.171251,57625.0,57624.0,0.1867]
[1725244236701,2.109921,57625.0,57624.0,0.1876009]
[1725244237374,1.640478,57625.0,57624.0,0.1876009]
[1725244237589,1.987549,57625.0,57624.0,0.0009009]
[1725244239795,1.979549,57625.0,57624.0,0.0009009]
[1725244240071,1.990549,57625.0,57624.0,0.0009009]
[1725244240635,1.979549,57625.0,57624.0,0.0009009]
[1725244241051,1.993549,57625.0,57624.0,0.0009009]
[1725244244171,4.453494,57625.0,57624.0,0.0009009]
[1725244244393,2.932499,57625.0,57624.0,0.0009009]
[1725244245943,2.750177,57625.0,57624.0,0.0009009]
[1725244247283,1.328748,57625.0,57624.0,0.1853009]
[1725244248196,1.855839,57625.0,57624.0,0.1853009]
[1725244248416,2.20291,57625.0,57624.0,0.0820009]
[1725244248897,2.22591,57625.0,57624.0,0.0820009]
[1725244249166,2.22591,57625.0,57624.0,0.0009009]
[1725244249413,2.21191,57625.0,57624.0,0.0009009]
[1725244249864,2.22291,57625.0,57624.0,0.0009009]
[1725244250611,2.27898518,57625.0,57624.0,0.0009009]
[1725244250826,2.21191,57625.0,57624.0,0.0009009]
[1725244251502,2.21791,57625.0,57624.0,0.0009009]
[1725244251734,1.870839,57625.0,57624.0,0.0009009]
[1725244251956,1.793186,57625.0,57624.0,0.0009009]
[1725244252466,2.140257,57625.0,57624.0,0.0009009]
[1725244252702,2.134257,57625.0,57624.0,0.0009009]
[1725244252936,1.787186,57625.0,57624.0,0.0009009]
[1725244253180,1.800186,57625.0,57624.0,0.0009009]
[1725244253418,1.578556,57625.0,57624.0,0.0009009]
[1725244254138,1.925627,57625.0,57624.0,0.0009009]
[1725244254380,1.578556,57625.0,57624.0,0.0009009]
[1725244258434,1.459048,57625.0,57624.0,0.0009009]
[1725244259150,1.350748,57625.0,57624.0,0.1875009]
[1725244260088,2.36366702,57625.0,57624.0,0.1875009]
[1725244260838,2.36366702,57625.0,57624.0,0.0848009]
[1725244261067,2.71073802,57625.0,57624.0,0.0009009]
[1725244261761,2.80649865,57625.0,57624.0,0.0009009]
[1725244262010,2.80449865,57625.0,57624.0,0.0009009]
[1725244262240,2.72706545,57625.0,57624.0,0.0009009]
[1725244262474,2.71406545,57625.0,57624.0,0.0009009]
[1725244262720,3.06313645,57625.0,57624.0,0.0009009]
[1725244262947,3.06313645,57625.0,57613.0,0.008998]
[1725244262948,0.347131,57615.0,57613.0,0.008998]
[1725244263183,3.2632501,57614.0,57613.0,0.008998]
[1725244263414,4.30526073,57614.0,57613.0,0.008998]
[1725244263650,4.93769383,57614.0,57613.0,0.008998]
[1725244264360,4.93769383,57614.0,57611.0,0.0004]
[1725244264361,2.00827502,57612.0,57611.0,0.0004]
[1725244264587,2.11439738,57612.0,57611.0,0.0004]
[1725244264816,7.07492938,57612.0,57611.0,0.0004]
[1725244265277,7.07492938,57612.0,57598.0,0.08]
[1725244265278,1.562391,57604.0,57598.0,0.08]
[1725244265535,2.13676937,57604.0,57598.0,0.08]
[1725244265788,5.45661437,57604.0,57598.0,0.08]
[1725244266038,5.55314004,57604.0,57598.0,0.08]
[1725244266298,4.1447673,57604.0,57598.0,0.08]
[1725244266550,4.1186892,57604.0,57598.0,0.08]
[1725244266810,2.67911504,57604.0,57598.0,0.08]
[1725244267032,2.54509604,57604.0,57598.0,0.08]
[1725244267257,2.62853479,57604.0,57598.0,0.08]
[1725244267484,2.65457226,57604.0,57598.0,0.08]
[1725244267748,2.6145104,57604.0,57598.0,0.08]
[1725244268192,2.6285104,57604.0,57598.0,0.08]
[1725244268417,2.62851563,57604.0,57598.0,0.08]
[1725244268643,2.44540694,57604.0,57598.0,0.08]
[1725244268877,2.42222594,57604.0,57598.0,0.08]
[1725244269343,2.50030119,57604.0,57598.0,0.08]
[1725244269573,2.42222594,57604.0,57598.0,0.08]
[1725244269819,2.40822594,57604.0,57598.0,0.08]
[1725244270277,2.48628256,57604.0,57603.0,0.10283]
[1725244270505,2.48626729,57604.0,57603.0,0.10283]
[1725244270730,2.50026729,57604.0,57603.0,0.10283]
[1725244271244,1.07328657,57604.0,57603.0,0.18393]
[1725244271478,1.00824522,57604.0,57603.0,0.18393]
[1725244271700,2.29825367,57604.0,57603.0,0.18393]
[1725244272370,2.32427129,57604.0,57603.0,0.18393]
[1725244272806,2.24911329,57604.0,57603.0,0.18393]
[1725244273247,2.10433029,57604.0,57603.0,0.18393]
[1725244273469,1.83302396,57604.0,57603.0,0.1848298]
[1725244273693,1.77982396,57604.0,57603.0,0.1848298]
[1725244274173,1.08425824,57604.0,57603.0,0.1848298]
[1725244274395,0.04125022,57604.0,57603.0,0.1898298]
[1725244274863,0.56204722,57604.0,57603.0,0.19594975]
[1725244275091,2.59129996,57604.0,57603.0,0.01214975]
[1725244275324,2.59129996,57604.0,57591.0,0.0004]
[1725244275325,1.215445,57592.0,57591.0,0.0004]
[1725244275574,2.88680472,57592.0,57591.0,0.0004]
[1725244275821,3.44808602,57592.0,57591.0,0.0004]
[1725244276083,3.8226121,57592.0,57591.0,0.0004]
[1725244276326,3.42126692,57592.0,57591.0,0.0004]
[1725244276553,3.41926692,57592.0,57591.0,0.0004]
[1725244277009,3.2575242,57592.0,57591.0,0.0004]
[1725244277467,3.38742808,57592.0,57591.0,0.0004]
[1725244278160,3.2715242,57592.0,57591.0,0.0004]
[1725244278621,3.37540746,57592.0,57591.0,0.0004]
[1725244278842,3.2715242,57592.0,57591.0,0.0004]
[1725244279074,3.27570129,57592.0,57591.0,0.0004]
[1725244279587,3.35358813,57592.0,57591.0,0.0004]
[1725244279834,3.35558813,57592.0,57591.0,0.0004]
[1725244280086,3.38158455,57592.0,57591.0,0.0004]
[1725244280537,3.39555338,57592.0,57591.0,0.0004]
[1725244280987,3.38155338,57592.0,57591.0,0.0004]
[1725244281232,3.29170129,57592.0,57591.0,0.0004]
[1725244281691,3.27770129,57592.0,57591.0,0.0004]
[1725244281952,3.27570129,57592.0,57591.0,0.0004]
[1725244282193,3.39349975,57592.0,57591.0,0.0004]
[1725244282652,3.39349975,57592.0,57576.0,0.0822]
[1725244282653,0.16374272,57580.0,57576.0,0.0822]
[1725244282875,0.521058,57575.0,57574.0,0.0989]
[1725244283115,1.77921072,57575.0,57574.0,0.0989]
[1725244283350,1.77921072,57575.0,57571.0,0.0004]
[1725244283351,0.521086,57572.0,57571.0,0.0004]
[1725244283583,2.184163,57572.0,57571.0,0.0004]
[1725244283806,3.314958,57572.0,57571.0,0.0004]
[1725244284522,3.328958,57572.0,57571.0,0.0004]
[1725244284746,2.06936,57572.0,57571.0,0.0004]
[1725244284976,1.094922,57572.0,57571.0,0.0004]
[1725244285207,1.094922,57572.0,57571.0,0.1055]
[1725244285438,1.456313,57572.0,57571.0,0.0004]
[1725244285667,1.803704,57572.0,57571.0,0.0004]
[1725244286628,1.789704,57572.0,57571.0,0.0004]
[1725244286847,1.800704,57572.0,57571.0,0.0004]
[1725244287302,1.870434,57572.0,57571.0,0.0004]
[1725244287549,1.859434,57572.0,57571.0,0.0004]
[1725244287781,2.206825,57572.0,57571.0,0.0004]
[1725244288226,2.220825,57572.0,57571.0,0.0004]
[1725244290328,2.206825,57572.0,57571.0,0.0004]
[1725244290556,2.220825,57572.0,57571.0,0.0004]
[1725244291713,1.873434,57572.0,57571.0,0.0004]
[1725244293102,1.873434,57572.0,57571.0,0.1883]
[1725244294106,0.08373,57572.0,57571.0,0.1883]
[1725244294367,0.08373,57572.0,57571.0,0.20280169]
[1725244294368,0.014,57572.0,57571.0,0.20280169]
[1725244294618,0.014,57572.0,57571.0,0.19780169]
[1725244294891,0.942181,57572.0,57571.0,0.00990169]
[1725244295130,2.881545,57572.0,57571.0,0.00990169]
[1725244295382,2.96346626,57572.0,57571.0,0.0004]
[1725244295630,3.23716126,57572.0,57571.0,0.0004]
[1725244295858,2.16795526,57572.0,57571.0,0.0004]
[1725244296081,2.19095526,57572.0,57571.0,0.0004]
[1725244296545,3.05234626,57572.0,57571.0,0.0004]
[1725244297007,3.03834626,57572.0,57571.0,0.0004]
[1725244297489,3.05234626,57572.0,57571.0,0.0004]
[1725244297973,3.03834626,57572.0,57571.0,0.0012998]
[1725244298195,3.05234626,57572.0,57571.0,0.0012998]
[1725244299644,3.130121,57572.0,57571.0,0.0012998]
[1725244301544,2.200259,57572.0,57571.0,0.0012998]
[1725244301798,2.134049,57572.0,57571.0,0.0012998]
[1725244302018,2.134049,57572.0,57571.0,0.1030998]
[1725244302478,1.623108,57572.0,57571.0,0.1030998]
[1725244303133,1.479193,57572.0,57571.0,0.1030998]
[1725244303336,1.664978,57572.0,57571.0,0.1030998]
[1725244303559,2.035369,57572.0,57571.0,0.0012998]
[1725244304214,2.021369,57572.0,57571.0,0.0012998]
[1725244304433,2.101469,57572.0,57571.0,0.0012998]
[1725244304656,2.021369,57572.0,57571.0,0.0012998]
[1725244305837,2.035369,57572.0,57571.0,0.0012998]
[1725244306302,2.021369,57572.0,57571.0,0.0012998]
[1725244306528,2.035369,57572.0,57571.0,0.0012998]
[1725244307017,2.023369,57572.0,57571.0,0.0012998]
[1725244307490,2.037369,57572.0,57571.0,0.0012998]
[1725244307722,2.38476,57572.0,57571.0,0.0012998]
[1725244308182,2.43476,57572.0,57571.0,0.0012998]
[1725244309629,2.45093709,57572.0,57571.0,0.0012998]
[1725244310519,2.45175609,57572.0,57571.0,0.0012998]
[1725244311929,2.45375609,57572.0,57571.0,0.0012998]
[1725244312116,2.45175609,57572.0,57571.0,0.0012998]
[1725244312352,2.46810061,57572.0,57571.0,0.0012998]
[1725244313215,2.88722961,57572.0,57571.0,0.0012998]
[1725244313458,2.53983861,57572.0,57571.0,0.0012998]
[1725244313950,2.70158133,57572.0,57571.0,0.0012998]
[1725244314202,2.69958133,57572.0,57571.0,0.0012998]
[1725244314470,2.33584581,57572.0,57571.0,0.0012998]
[1725244315383,2.68323681,57572.0,57571.0,0.0012998]
[1725244316062,2.33584581,57572.0,57571.0,0.0012998]
[1725244316555,2.28584581,57572.0,57571.0,0.0012998]
[1725244317094,2.26284581,57572.0,57571.0,0.0012998]
[1725244318872,2.28584581,57572.0,57571.0,0.0012998]
[1725244320657,0.95893009,57572.0,57571.0,0.1835998]
[1725244320898,0.188514,57572.0,57571.0,0.1835998]
[1725244321143,1.230687,57572.0,57571.0,0.1835998]
[1725244321360,2.613056,57572.0,57571.0,0.0012998]
[1725244321573,2.599056,57572.0,57571.0,0.0012998]
[1725244322002,1.569078,57572.0,57571.0,0.0012998]
[1725244322285,2.73749359,57572.0,57571.0,0.0012998]
[1725244322510,2.55665686,57572.0,57571.0,0.0012998]
[1725244322749,2.06936373,57572.0,57571.0,0.0012998]
[1725244322973,1.84873,57572.0,57571.0,0.0012998]
[1725244323193,1.92686373,57572.0,57571.0,0.0012998]
[1725244323638,1.57947273,57572.0,57571.0,0.0012998]
[1725244323850,1.37878223,57572.0,57571.0,0.1898998]
[1725244324059,1.326687,57572.0,57571.0,0.1898998]
[1725244324275,1.36878222,57572.0,57571.0,0.1898998]
[1725244324486,1.316687,57572.0,57571.0,0.1898998]
[1725244324699,1.329687,57572.0,57571.0,0.1898998]
[1725244325148,0.92140353,57572.0,57571.0,0.1898998]
[1725244325423,0.869296,57572.0,57571.0,0.1898998]
[1725244325666,0.878296,57572.0,57571.0,0.1898998]
[1725244325898,0.892296,57572.0,57571.0,0.1898998]
[1725244326384,1.000296,57572.0,57571.0,0.1898998]
[1725244326631,1.05240262,57572.0,57571.0,0.1898998]
[1725244326877,1.39979362,57572.0,57571.0,0.1898998]
[1725244327128,1.05242743,57572.0,57571.0,0.1898998]
[1725244327641,0.992296,57572.0,57571.0,0.1898998]
[1725244327866,0.999296,57572.0,57571.0,0.1898998]
[1725244328961,1.346687,57572.0,57571.0,0.1898998]
[1725244329415,0.999296,57572.0,57571.0,0.1898998]
[1725244329982,1.12967194,57572.0,57571.0,0.1898998]
[1725244330069,0.976296,57572.0,57571.0,0.1898998]
[1725244330471,1.50842972,57572.0,57571.0,0.1898998]
[1725244330653,2.43165346,57572.0,57571.0,0.0012998]
[1725244330884,2.32736072,57572.0,57571.0,0.0012998]
[1725244331124,1.90025572,57572.0,57571.0,0.0012998]
[1725244331329,1.91081562,57572.0,57571.0,0.0012998]
[1725244331542,1.90381562,57572.0,57571.0,0.0012998]
[1725244331749,1.78245472,57572.0,57571.0,0.0012998]
[1725244331961,1.68188572,57572.0,57571.0,0.0012998]
[1725244332173,1.339687,57572.0,57571.0,0.0012998]
[1725244332428,1.44397059,57572.0,57571.0,0.1095998]
[1725244332635,1.45697059,57572.0,57571.0,0.1095998]
[1725244332840,1.45696677,57572.0,57571.0,0.1095998]
[1725244333066,1.79135777,57572.0,57571.0,0.0012998]
[1725244333278,3.125255,57572.0,57571.0,0.0012998]
[1725244333728,3.000953,57572.0,57571.0,0.0012998]
[1725244333931,2.478003,57572.0,57571.0,0.0012998]
[1725244334582,2.489003,57572.0,57571.0,0.0012998]
[1725244335003,2.419948,57572.0,57571.0,0.0012998]
[1725244335221,2.351873,57572.0,57571.0,0.0012998]
[1725244335466,1.945682,57572.0,57571.0,0.0012998]
[1725244335918,3.219382,57572.0,57571.0,0.0012998]
[1725244336145,3.566773,57572.0,57571.0,0.0012998]
[1725244336388,3.219382,57572.0,57571.0,0.0012998]
[1725244336630,2.627387,57572.0,57571.0,0.0840998]
[1725244337093,2.627387,57572.0,57571.0,0.1858998]
[1725244337292,2.75774267,57572.0,57571.0,0.1858998]
[1725244337590,2.612568,57572.0,57571.0,0.1858998]
[1725244337801,2.70477785,57572.0,57571.0,0.1858998]
[1725244338030,2.70477785,57572.0,57571.0,0.20448978]
[1725244338031,2.35738746,57572.0,57571.0,0.20448978]
[1725244338253,2.242177,57572.0,57571.0,0.20448978]
[1725244338479,2.242177,57572.0,57571.0,0.1858998]
[1725244338688,2.256177,57572.0,57571.0,0.1858998]
[1725244338897,2.256177,57572.0,57571.0,0.1718998]
[1725244339109,1.894786,57572.0,57571.0,0.1718998]
[1725244339332,1.901786,57572.0,57571.0,0.1718998]
[1725244340160,0.280695,57572.0,57571.0,0.1718998]
[1725244340376,0.280695,57572.0,57571.0,0.1768998]
[1725244341237,0.975477,57572.0,57571.0,0.1768998]
[1725244341444,0.17371,57567.0,57566.0,0.014009]
[1725244341666,0.621131,57567.0,57566.0,0.014009]
[1725244341888,0.968552,57567.0,57566.0,0.014009]
[1725244342109,0.64839459,57567.0,57566.0,0.192809]
[1725244342340,0.99581559,57567.0,57566.0,0.187809]
[1725244342569,1.02081559,57567.0,57566.0,0.187809]
[1725244342800,1.36823659,57567.0,57566.0,0.187809]
[1725244343011,1.42036547,57567.0,57566.0,0.009009]
[1725244343894,1.36623659,57567.0,57566.0,0.009009]
[1725244344125,1.36923659,57567.0,57566.0,0.009009]
[1725244344545,1.36623659,57567.0,57566.0,0.009009]
[1725244344770,1.63898659,57567.0,57566.0,0.009009]
[1725244344968,1.72019705,57567.0,57566.0,0.009009]
[1725244345194,1.64198659,57567.0,57566.0,0.009009]
[1725244345426,1.63898659,57567.0,57566.0,0.009009]
[1725244345628,1.50043659,57567.0,57566.0,0.009009]
[1725244345844,1.37023659,57567.0,57566.0,0.009009]
[1725244346069,1.42237162,57567.0,57566.0,0.009009]
[1725244346292,1.37023659,57567.0,57566.0,0.009009]
[1725244346497,1.42237246,57567.0,57566.0,0.009009]
[1725244346728,1.37023659,57567.0,57566.0,0.009009]
[1725244347183,1.36623659,57567.0,57566.0,0.009009]
[1725244347397,1.37723659,57567.0,57566.0,0.009009]
[1725244347822,2.63993659,57567.0,57566.0,0.009009]
[1725244348490,2.64393659,57567.0,57566.0,0.009009]
[1725244349146,2.69606981,57567.0,57566.0,0.009009]
[1725244349365,2.64393659,57567.0,57566.0,0.009009]
[1725244349574,0.13126359,57567.0,57566.0,0.2173899]
[1725244349789,0.13126359,57567.0,57566.0,0.21764744]
[1725244350008,0.03126359,57567.0,57566.0,0.21764744]
[1725244350232,0.12726359,57567.0,57566.0,0.21764744]
[1725244350460,0.13226359,57567.0,57566.0,0.21764744]
[1725244351100,0.12726359,57567.0,57566.0,0.21764744]
[1725244351325,0.20197359,57567.0,57566.0,0.21764744]
[1725244351532,0.30197359,57567.0,57566.0,0.208109]
[1725244351741,0.30097359,57567.0,57566.0,0.21764744]
[1725244352178,0.30197359,57567.0,57566.0,0.21764744]
[1725244352627,0.12826359,57567.0,57566.0,0.21764744]
[1725244353519,0.12726359,57567.0,57566.0,0.21764744]
[1725244353956,0.12826359,57567.0,57566.0,0.21764744]
[1725244354375,0.12726359,57567.0,57566.0,0.21764744]
[1725244357407,0.30097359,57567.0,57566.0,0.21764744]
[1725244358048,0.12726359,57567.0,57566.0,0.21764744]
[1725244358272,0.02726359,57567.0,57566.0,0.21764744]
[1725244358487,0.12726359,57567.0,57566.0,0.21764744]
[1725244360939,0.12726359,57567.0,57566.0,0.77792408]
[1725244361173,0.02726359,57567.0,57566.0,0.77792408]
[1725244361438,0.02726359,57567.0,57566.0,0.76838564]
[1725244361881,0.02726359,57567.0,57566.0,0.77792408]
[1725244362108,0.02826359,57567.0,57566.0,0.77792408]
[1725244363424,0.173694,57573.0,57569.0,0.1913]
[1725244363636,0.173694,57573.0,57571.0,0.01]
[1725244364056,0.173694,57573.0,57572.0,0.00949434]
[1725244365588,0.273694,57573.0,57572.0,0.00949434]
[1725244366642,0.07819866,57583.0,57572.0,0.00949434]
[1725244366643,0.05213244,57582.0,57580.0,0.2002]
[1725244366871,0.05213244,57582.0,57572.0,0.01296787]
[1725244366872,0.347336,57581.0,57579.0,0.005]
[1725244367112,0.0863,57580.0,57568.0,0.005]
[1725244367347,0.173707,57568.0,57567.0,0.005]
[1725244367570,0.521122,57568.0,57567.0,0.005]
[1725244367784,0.868537,57568.0,57567.0,0.005]
[1725244368230,0.521122,57568.0,57567.0,0.005]
[1725244368684,0.54838357,57568.0,57567.0,0.005]
[1725244368892,0.02726157,57568.0,57567.0,0.01]
[1725244369743,0.20096857,57568.0,57567.0,0.01]
[1725244370413,0.02726157,57568.0,57567.0,0.01]
[1725244370617,0.20096857,57568.0,57567.0,0.01]
[1725244372656,0.02726157,57568.0,57567.0,0.01]
[1725244372863,0.02726157,57568.0,57567.0,0.015]
[1725244374533,0.347399,57571.0,57567.0,0.015]
[1725244374762,0.521097,57571.0,57570.0,0.01]
[1725244375441,0.521097,57571.0,57570.0,0.01950904]
[1725244375659,0.173698,57571.0,57570.0,0.01950904]
[1725244376079,0.173694,57573.0,57571.0,0.005]
[1725244376335,0.173695,57572.0,57571.0,0.005]
[1725244376546,0.173695,57572.0,57571.0,0.03215921]
[1725244376791,0.273695,57572.0,57571.0,0.03215921]
[1725244378069,0.273695,57572.0,57571.0,0.005]
[1725244379994,0.1,57572.0,57571.0,0.005]
[1725244380181,0.1,57572.0,57571.0,0.0898]
[1725244380422,0.100819,57575.0,57571.0,0.0898]
[1725244380662,0.17369,57574.0,57573.0,0.005]
[1725244380878,0.27369,57574.0,57573.0,0.005]
[1725244383898,0.621069,57574.0,57573.0,0.005]
[1725244386922,0.868477,57572.0,57571.0,0.0009009]
[1725244387207,3.73876581,57572.0,57571.0,0.0009009]
[1725244387493,2.85420081,57572.0,57571.0,0.0009009]
[1725244387749,2.62848911,57572.0,57571.0,0.0009009]
[1725244388479,2.70665222,57572.0,57571.0,0.0009009]
[1725244388910,2.62848911,57572.0,57571.0,0.0009009]
[1725244389142,2.63148911,57572.0,57571.0,0.0009009]
[1725244389639,2.46974639,57572.0,57571.0,0.0009009]
[1725244390405,2.62615048,57572.0,57571.0,0.0009009]
[1725244390503,2.46974639,57572.0,57571.0,0.0009009]
[1725244390958,2.54796179,57572.0,57571.0,0.0009009]
[1725244391625,2.46974639,57572.0,57571.0,0.0009009]
[1725244392485,2.57401604,57572.0,57571.0,0.0009009]
[1725244392911,2.46974639,57572.0,57571.0,0.0009009]
[1725244393587,1.83026807,57572.0,57571.0,0.2050009]
[1725244393801,0.70354936,57572.0,57571.0,0.2050009]
[1725244394258,0.6513493,57572.0,57571.0,0.2050009]
[1725244394694,0.9987403,57572.0,57571.0,0.2050009]
[1725244394921,0.6513493,57572.0,57571.0,0.2050009]
[1725244399748,0.9987403,57572.0,57571.0,0.2050009]
[1725244399981,0.6513493,57572.0,57571.0,0.2050009]
[1725244400907,0.9987403,57572.0,57571.0,0.2050009]
[1725244401791,0.6513493,57572.0,57571.0,0.2050009]
[1725244402072,0.6513493,57572.0,57571.0,0.2000009]
[1725244402312,1.07705289,57572.0,57571.0,0.0009009]
[1725244402553,1.44744389,57572.0,57571.0,0.0009009]
[1725244402795,3.4780299,57572.0,57571.0,0.0009009]
[1725244403033,3.45751311,57572.0,57571.0,0.0009009]
[1725244403278,3.42380411,57572.0,57571.0,0.0009009]
[1725244403538,2.5772651,57572.0,57571.0,0.0009009]
[1725244403788,2.5741581,57572.0,57571.0,0.0009009]
[1725244405485,2.46974639,57572.0,57571.0,0.0009009]
[1725244406523,2.54804832,57572.0,57571.0,0.0009009]
[1725244407461,1.44825223,57572.0,57571.0,0.0009009]
[1725244407692,1.07786123,57572.0,57571.0,0.0059009]
[1725244409596,1.0778615,57572.0,57571.0,0.0059009]
[1725244409846,1.0778615,57572.0,57571.0,0.1102009]
[1725244410090,0.6521683,57572.0,57571.0,0.20601108]
[1725244410330,1.0517607,57572.0,57571.0,0.20601108]
[1725244410578,1.0517607,57572.0,57571.0,0.1939009]
[1725244410828,0.6521683,57572.0,57571.0,0.1939009]
[1725244411080,0.6521683,57572.0,57571.0,0.2039009]
[1725244412654,0.65202443,57572.0,57571.0,0.2039009]
[1725244412872,0.64902443,57572.0,57571.0,0.2039009]
[1725244413300,0.65202443,57572.0,57571.0,0.2039009]
[1725244413778,0.64902443,57572.0,57571.0,0.2039009]
[1725244414917,0.65002443,57572.0,57571.0,0.22438108]
[1725244415348,0.12893843,57572.0,57571.0,0.22438108]
[1725244415567,0.30263343,57572.0,57571.0,0.22438108]
[1725244415779,0.30263343,57572.0,57571.0,0.23388277]
[1725244415996,0.27437013,57572.0,57571.0,0.22438108]
[1725244416245,0.27437013,57572.0,57571.0,0.21340259]
[1725244416863,0.27437013,57572.0,57571.0,0.10910259]
[1725244417075,0.10067513,57572.0,57571.0,0.10910259]
[1725244417507,0.174514,57572.0,57571.0,0.10910259]
[1725244417766,0.274514,57572.0,57571.0,0.10910259]
[1725244418201,0.621905,57572.0,57571.0,0.02540259]
[1725244421175,0.621905,57572.0,57571.0,0.0159009]
[1725244421849,0.621905,57572.0,57571.0,0.02540259]
[1725244422260,0.969296,57572.0,57571.0,0.02540259]
[1725244422483,0.621905,57572.0,57571.0,0.02540259]
[1725244422693,0.621905,57572.0,57571.0,0.0159009]
[1725244422905,0.969296,57572.0,57571.0,0.02540259]
[1725244423111,0.969296,57572.0,57571.0,0.0159009]
[1725244423321,0.621905,57572.0,57571.0,0.0159009]
[1725244423522,0.621905,57572.0,57571.0,0.03720844]
[1725244423740,0.621905,57572.0,57571.0,0.0159009]
[1725244423958,0.621905,57572.0,57571.0,0.02540259]
[1725244424169,0.969296,57572.0,57571.0,0.0159009]
[1725244426728,0.86968973,57572.0,57571.0,0.0159009]
[1725244426927,0.868477,57572.0,57571.0,0.03686108]
[1725244427133,0.521086,57572.0,57571.0,0.03686108]
[1725244428033,0.868477,57572.0,57571.0,0.03686108]
[1725244428610,0.868477,57572.0,57571.0,0.0159009]
[1725244428889,1.315868,57572.0,57571.0,0.0009009]
[1725244429051,0.968477,57572.0,57571.0,0.0159009]
[1725244429458,0.99573878,57572.0,57571.0,0.0159009]
[1725244429877,0.99573878,57572.0,57571.0,0.0994009]
[1725244430778,0.99573878,57572.0,57571.0,0.0159009]
[1725244431424,0.99655678,57572.0,57571.0,0.0159009]
[1725244431643,0.99655678,57572.0,57571.0,0.21558108]
[1725244431644,0.02807978,57572.0,57571.0,0.21558108]
[1725244431837,0.02807978,57572.0,57571.0,1.25538833]
[1725244432130,0.02807978,57572.0,57571.0,1.25738833]
[1725244432131,0.000818,57572.0,57571.0,1.25738833]
[1725244433191,0.000818,57572.0,57571.0,0.21460259]